[Event "14th Margaryan Memorial-IM 2024"]
[Site "Yerevan"]
[Date "2024.01.08"]
[Round "1.6"]
[White "Lomsadze, Davit"]
[Black "Zakaryan, David"]
[Result "1-0"]
[ECO "A08"]
[WhiteElo "2253"]
[BlackElo "2299"]
[Annotator "RC"]
[PlyCount "103"]
[EventDate "2024.01.08"]
[EventType "tourn"]
[EventCountry "ARM"]
[SourceTitle "playchess.com"]
[Source "ChessBase"]
[SourceQuality "1"]
[TimeControl "40/5400+30:1800+30"]

1. Nf3 {[%emt 0:00:11]} d5 {[%emt 0:00:08]} 2. g3 {[%emt 0:00:07]} Nf6 {[%emt 0:00:07]} 3. Bg2 {[%emt 0:00:02]} c5 {[%emt 0:00:06]} 4. O-O {[%emt 0:00:08]} Nc6 {[%emt 0:00:02]} 5. d3 {[%emt 0:00:07]} e5 {[%emt 0:00:03]} 6. Bg5 {[%emt 0:07:32]} Be7 {[%emt 0:00:02]} 7. e4 {[%emt 0:00:54]} d4 {[%emt 0:00:08]} 8. a4 {[%emt 0:00:54]} Be6 {[%emt 0:01:25]} 9. Na3 {[%emt 0:00:30]} Nd7 {[%emt 0:00:37]} 10. Bxe7 {[%emt 0:01:01]} Qxe7 {[%emt 0:01:11]} 11. Qd2 {[%emt 0:02:59]} f6 {[%emt 0:03:31]} 12. Nh4 {[%emt 0:01:15]} O-O-O {[%emt 0:03:10]} 13. Nf5 {[%emt 0:01:03]} Qf8 {[%emt 0:00:03]} 14. a5 {[%emt 0:00:55]} Ndb8 {[%emt 0:01:20]} 15. f4 {[%emt 0:04:05]} Na6 {[%emt 0:03:41]} 16. Nh4 {[%emt 0:02:51]} Nab4 {[%emt 0:18:58]} 17. b3 {[%emt 0:09:58]} Kb8 {[%emt 0:05:09]} 18. a6 {[%emt 0:03:46]} Nxa6 {[%emt 0:00:29]} 19. fxe5 {[%emt 0:01:33]} Nxe5 {[%emt 0:00:12]} 20. Nf3 {[%emt 0:00:26]} Qe7 {[%emt 0:01:59]} 21. Qf4 {[%emt 0:02:45]} Bg8 {[%emt 0:04:06]} 22. Bh3 {[%emt 0:02:14]} Nc7 {[%emt 0:01:50]} 23. Nxe5 {[%emt 0:00:42]} fxe5 {[%emt 0:00:40]} 24. Qd2 {[%emt 0:03:04]} h5 {[%emt 0:03:18]} 25. Nc4 {[%emt 0:01:51]} Bxc4 {[%emt 0:01:29]} 26. bxc4 {[%emt 0:00:05]} Rd6 {[%emt 0:01:32]} 27. Rf5 {[%emt 0:04:38]} g6 {[%emt 0:00:46]} 28. Rf3 {[%emt 0:03:58]} Rf8 {[%emt 0:03:43]} 29. Rxf8+ {[%emt 0:01:04]} Qxf8 {[%emt 0:00:06]} 30. Qg5 {[%emt 0:00:09]} Qg7 {[%emt 0:01:15]} 31. Rf1 {[%emt 0:00:15]} a5 {[%emt 0:00:39]} 32. Qd2 {[%emt 0:03:10]} Ra6 {[%emt 0:00:46]} 33. Qg5 {[%emt 0:00:02]} Rd6 {[%emt 0:01:14]} 34. Qd2 {[%emt 0:00:04]} b6 {[%emt 0:00:02]} 35. Qg5 {[%emt 0:00:12]} Kb7 {[%emt 0:01:12]} 36. Bf5 {[%emt 0:04:09]} Ne8 {[%emt 0:01:31]} 37. Bh3 {[%emt 0:01:05]} Rf6 {[%emt 0:00:38]} 38. Rb1 {[%emt 0:03:08]} Nc7 {[%emt 0:01:22]} 39. Rf1 {[%emt 0:03:48]} Rxf1+ {[%emt 0:02:59]} 40. Kxf1 {[%emt 0:00:00]} a4 {[%emt 0:00:00]} 41. Qd8 {[%emt 0:15:23]} Kc6 {[%emt 0:24:49]} 42. Qb8 {[%emt 0:05:06]} a3 {[%emt 0:09:13]} 43. Kg2 {[%emt 0:10:44]} Qh6 {[%emt 0:20:11]} 44. Bc8 {[%emt 0:00:30]} Qd2+ {[%emt 0:00:01]} 45. Kh3 {[%emt 0:00:36]} Qa5 {[%emt 0:06:24]} 46. Bb7+ {[%emt 0:00:41]} Kd7 {[%emt 0:00:02]} 47. Qc8+ {[%emt 0:00:07]} Kd6 {[%emt 0:01:25]} 48. Qd8+ {[%emt 0:00:09]} Ke6 {[%emt 0:00:00]} 49. Bd5+ {[%emt 0:01:52]} Nxd5 {[%emt 0:00:05]} 50. cxd5+ {[%emt 0:00:03]} Kf7 {[%emt 0:00:03]} 51. d6 {[%emt 0:00:29]} Ke6 {[%emt 0:04:47]} 52. Qe7# {[%emt 0:34:10]} 1-0

[Event "14th Margaryan Memorial-IM 2024"]
[Site "Yerevan"]
[Date "2024.01.08"]
[Round "1.7"]
[White "Kaiyrbekov, Rustam"]
[Black "Pashikyan, Rudolf"]
[Result "0-1"]
[ECO "E06"]
[WhiteElo "2295"]
[BlackElo "2287"]
[Annotator "RC"]
[PlyCount "46"]
[EventDate "2024.01.08"]
[EventType "tourn"]
[EventCountry "ARM"]
[SourceTitle "playchess.com"]
[Source "ChessBase"]
[SourceQuality "1"]
[TimeControl "40/5400+30:1800+30"]

1. d4 {[%emt 0:00:02]} Nf6 {[%emt 0:00:28]} 2. Nf3 {[%emt 0:00:06]} d5 {[%emt 0:00:05]} 3. c4 {[%emt 0:00:09]} e6 {[%emt 0:00:05]} 4. g3 {[%emt 0:00:37]} Be7 {[%emt 0:00:10]} 5. Bg2 {[%emt 0:00:10]} O-O {[%emt 0:00:14]} 6. Qc2 {[%emt 0:01:56]} c5 {[%emt 0:00:44]} 7. dxc5 {[%emt 0:00:31]} d4 {[%emt 0:00:08]} 8. a3 {[%emt 0:01:03]} a5 {[%emt 0:00:14]} 9. O-O {[%emt 0:01:12]} Nc6 {[%emt 0:00:23]} 10. Rd1 {[%emt 0:01:46]} e5 {[%emt 0:07:08]} 11. Nc3 {[%emt 0:03:59]} Bxc5 {[%emt 0:06:52]} 12. Nd5 {[%emt 0:07:09]} h6 {[%emt 0:05:58]} 13. Nh4 {[%emt 0:06:48]} Re8 {[%emt 0:04:29]} 14. h3 {[%emt 0:06:15]} e4 {[%emt 0:03:38]} 15. Nxf6+ {[%emt 0:04:18]} Qxf6 {[%emt 0:00:30]} 16. Bxe4 {[%emt 0:07:10]} d3 {[%emt 0:00:15]} 17. Qxd3 {[%emt 0:06:27]} Qxf2+ {[%emt 0:00:49]} 18. Kh1 {[%emt 0:00:02]} Ne5 {[%emt 0:00:21]} 19. Qc3 {[%emt 0:04:57]} Bxh3 {[%emt 0:04:00]} 20. b4 {[%emt 0:17:13]} Ng4 {[%emt 0:03:16]} 21. Bg2 {[%emt 0:01:32]} Bxg2+ {[%emt 0:00:07]} 22. Nxg2 {[%emt 0:00:09]} Rxe2 {[%emt 0:00:04]} 23. Ne1 {[%emt 0:28:29]} Re7 {[%emt 1:02:02]} 0-1

[Event "14th Margaryan Memorial-IM 2024"]
[Site "Yerevan"]
[Date "2024.01.08"]
[Round "1.8"]
[White "Sagradov Sahakyan, Alexander"]
[Black "Putrenko, Kirill"]
[Result "0-1"]
[ECO "B90"]
[WhiteElo "1423"]
[BlackElo "2353"]
[Annotator "RC"]
[PlyCount "84"]
[EventDate "2024.01.08"]
[EventType "tourn"]
[EventCountry "ARM"]
[SourceTitle "playchess.com"]
[Source "ChessBase"]
[SourceQuality "1"]
[TimeControl "40/5400+30:1800+30"]

1. e4 {[%emt 0:00:03]} c5 {[%emt 0:00:06]} 2. Nf3 {[%emt 0:00:04]} d6 {[%emt 0:00:08]} 3. d4 {[%emt 0:00:04]} cxd4 {[%emt 0:00:06]} 4. Nxd4 {[%emt 0:00:04]} Nf6 {[%emt 0:00:10]} 5. Nc3 {[%emt 0:00:05]} a6 {[%emt 0:00:07]} 6. h3 {[%emt 0:00:03]} g6 {[%emt 0:00:31]} 7. Be3 {[%emt 0:00:11]} Bg7 {[%emt 0:01:01]} 8. g4 {[%emt 0:04:59]} O-O {[%emt 0:00:21]} 9. Bg2 {[%emt 0:00:09]} Nc6 {[%emt 0:00:19]} 10. O-O {[%emt 0:16:38]} Nxd4 {[%emt 0:01:38]} 11. Bxd4 {[%emt 0:00:29]} b5 {[%emt 0:00:23]} 12. e5 {[%emt 0:18:49]} dxe5 {[%emt 0:00:40]} 13. Bxe5 {[%emt 0:00:58]} Ra7 {[%emt 0:03:37]} 14. Qxd8 {[%emt 0:05:19]} Rxd8 {[%emt 0:00:12]} 15. Rad1 {[%emt 0:08:49]} Rad7 {[%emt 0:04:09]} 16. Rxd7 {[%emt 0:06:36]} Rxd7 {[%emt 0:00:46]} 17. a4 {[%emt 0:02:19]} b4 {[%emt 0:06:07]} 18. Na2 {[%emt 0:00:28]} a5 {[%emt 0:05:56]} 19. Nc1 {[%emt 0:06:52]} h5 {[%emt 0:29:30]} 20. Nb3 {[%emt 0:14:06]} hxg4 {[%emt 0:06:05]} 21. Bc6 {[%emt 0:06:21]} Ra7 {[%emt 0:08:06]} 22. Nc5 {[%emt 0:01:39]} Bd7 {[%emt 0:18:32]} 23. Bb8 {[%emt 0:00:51]} Bxc6 {[%emt 0:00:28]} 24. Bxa7 {[%emt 0:00:01]} gxh3 {[%emt 0:00:22]} 25. f3 {[%emt 0:01:37]} Nd5 {[%emt 0:03:55]} 26. Nd3 {[%emt 0:03:54]} Bxa4 {[%emt 0:00:57]} 27. b3 {[%emt 0:00:46]} Bd7 {[%emt 0:02:31]} 28. Kh2 {[%emt 0:01:26]} Bf5 {[%emt 0:03:36]} 29. Rf2 {[%emt 0:00:29]} Kf8 {[%emt 0:01:34]} 30. Bb8 {[%emt 0:00:36]} Bd4 {[%emt 0:00:39]} 31. Rd2 {[%emt 0:00:39]} Be3 {[%emt 0:00:53]} 32. Rd1 {[%emt 0:00:26]} f6 {[%emt 0:01:31]} 33. Bg3 {[%emt 0:00:30]} e6 {[%emt 0:00:50]} 34. Ra1 {[%emt 0:00:36]} Bb6 {[%emt 0:00:14]} 35. Re1 {[%emt 0:00:31]} Kf7 {[%emt 0:00:24]} 36. Re2 {[%emt 0:00:29]} g5 {[%emt 0:00:33]} 37. Nb2 {[%emt 0:00:20]} Ne3 {[%emt 0:01:11]} 38. Bf2 {[%emt 0:00:26]} Bc7+ {[%emt 0:00:30]} 39. Kh1 {[%emt 0:00:42]} Nxc2 {[%emt 0:00:25]} 40. Nc4 {[%emt 0:00:00]} Kg6 {[%emt 0:00:00]} 41. Bc5 {[%emt 0:16:47]} Bd3 {[%emt 0:25:24]} 42. Rxe6 {[%emt 0:01:22]} Bxc4 {[%emt 0:00:23]} 0-1

[Event "14th Margaryan Memorial-IM 2024"]
[Site "Yerevan"]
[Date "2024.01.08"]
[Round "1.9"]
[White "Hayrapetyan, Edgar"]
[Black "Ambartsumian, Tyhran"]
[Result "1-0"]
[ECO "C85"]
[WhiteElo "2233"]
[BlackElo "2224"]
[Annotator "RC"]
[PlyCount "71"]
[EventDate "2024.01.08"]
[EventType "tourn"]
[EventCountry "ARM"]
[SourceTitle "playchess.com"]
[Source "ChessBase"]
[SourceQuality "1"]
[TimeControl "40/5400+30:1800+30"]

1. e4 {[%emt 0:00:04]} e5 {[%emt 0:00:10]} 2. Nf3 {[%emt 0:00:06]} Nc6 {[%emt 0:00:10]} 3. Bb5 {[%emt 0:00:07]} a6 {[%emt 0:00:06]} 4. Ba4 {[%emt 0:00:04]} Nf6 {[%emt 0:00:08]} 5. O-O {[%emt 0:01:05]} Be7 {[%emt 0:00:06]} 6. Bxc6 {[%emt 0:04:32]} dxc6 {[%emt 0:00:21]} 7. d3 {[%emt 0:00:05]} Nd7 {[%emt 0:06:41]} 8. Nbd2 {[%emt 0:00:07]} c5 {[%emt 0:02:27]} 9. Nc4 {[%emt 0:01:05]} f6 {[%emt 0:00:30]} 10. Nh4 {[%emt 0:06:47]} Nf8 {[%emt 0:07:36]} 11. f4 {[%emt 0:17:15]} Be6 {[%emt 0:04:34]} 12. Nf5 {[%emt 0:15:53]} Bxc4 {[%emt 0:12:57]} 13. Nxg7+ {[%emt 0:08:23]} Kf7 {[%emt 0:00:10]} 14. Nf5 {[%emt 0:00:07]} Be6 {[%emt 0:05:23]} 15. Qh5+ {[%emt 0:01:59]} Ng6 {[%emt 0:06:41]} 16. Nh6+ {[%emt 0:00:20]} Ke8 {[%emt 0:00:54]} 17. f5 {[%emt 0:00:13]} Qd4+ {[%emt 0:01:42]} 18. Kh1 {[%emt 0:02:12]} Bf7 {[%emt 0:01:56]} 19. Rf3 {[%emt 0:04:41]} Qa4 {[%emt 0:28:44]} 20. Be3 {[%emt 0:15:14]} Qxc2 {[%emt 0:10:38]} 21. Rg3 {[%emt 0:00:15]} Rf8 {[%emt 0:01:43]} 22. Nxf7 {[%emt 0:01:40]} Rxf7 {[%emt 0:00:42]} 23. fxg6 {[%emt 0:00:24]} hxg6 {[%emt 0:00:07]} 24. Qxg6 {[%emt 0:03:10]} Rd8 {[%emt 0:01:57]} 25. h4 {[%emt 0:05:33]} Qxb2 {[%emt 0:01:14]} 26. Rf1 {[%emt 0:00:17]} Qxa2 {[%emt 0:00:08]} 27. Qf5 {[%emt 0:02:39]} Qe2 {[%emt 0:04:07]} 28. Rff3 {[%emt 0:02:29]} Qa2 {[%emt 0:02:03]} 29. h5 {[%emt 0:01:22]} Bf8 {[%emt 0:00:31]} 30. Rg8 {[%emt 0:00:37]} Qb1+ {[%emt 0:00:31]} 31. Kh2 {[%emt 0:00:16]} Qb6 {[%emt 0:00:27]} 32. h6 {[%emt 0:00:50]} Rdd7 {[%emt 0:00:01]} 33. Qg6 {[%emt 0:02:08]} Kd8 {[%emt 0:00:34]} 34. Bg5 {[%emt 0:00:36]} fxg5 {[%emt 0:00:50]} 35. Rxf8+ {[%emt 0:00:21]} Rxf8 {[%emt 0:00:10]} 36. Rxf8+ {[%emt 0:00:05]} 1-0

[Event "14th Margaryan Memorial-IM 2024"]
[Site "Yerevan"]
[Date "2024.01.08"]
[Round "1.10"]
[White "Gasparyan, Erik R."]
[Black "Rostomyan, Mikayel"]
[Result "1-0"]
[ECO "B31"]
[WhiteElo "2340"]
[BlackElo "2294"]
[Annotator "RC"]
[PlyCount "81"]
[EventDate "2024.01.08"]
[EventType "tourn"]
[EventCountry "ARM"]
[SourceTitle "playchess.com"]
[Source "ChessBase"]
[SourceQuality "1"]
[TimeControl "40/5400+30:1800+30"]

1. e4 {[%emt 0:00:04]} c5 {[%emt 0:00:11]} 2. Nf3 {[%emt 0:00:33]} Nc6 {[%emt 0:00:14]} 3. Bb5 {[%emt 0:00:36]} g6 {[%emt 0:00:27]} 4. O-O {[%emt 0:00:57]} Bg7 {[%emt 0:00:27]} 5. Re1 {[%emt 0:00:22]} e5 {[%emt 0:00:33]} 6. Bxc6 {[%emt 0:00:30]} dxc6 {[%emt 0:00:08]} 7. a4 {[%emt 0:00:07]} Qe7 {[%emt 0:02:19]} 8. d3 {[%emt 0:00:53]} Nh6 {[%emt 0:01:46]} 9. Na3 {[%emt 0:04:22]} f6 {[%emt 0:00:39]} 10. a5 {[%emt 0:06:18]} Nf7 {[%emt 0:00:56]} 11. Be3 {[%emt 0:02:33]} Nd8 {[%emt 0:06:01]} 12. Nc4 {[%emt 0:06:05]} Ne6 {[%emt 0:04:31]} 13. Nfd2 {[%emt 0:24:35]} O-O {[%emt 0:01:58]} 14. Ra4 {[%emt 0:02:29]} Rb8 {[%emt 0:08:42]} 15. b4 {[%emt 0:08:13]} b5 {[%emt 0:02:39]} 16. axb6 {[%emt 0:00:14]} axb6 {[%emt 0:00:09]} 17. Ra1 {[%emt 0:03:49]} b5 {[%emt 0:06:54]} 18. Na5 {[%emt 0:00:14]} Bd7 {[%emt 0:00:26]} 19. bxc5 {[%emt 0:00:12]} Nxc5 {[%emt 0:01:23]} 20. Ndb3 {[%emt 0:00:27]} Ne6 {[%emt 0:01:43]} 21. d4 {[%emt 0:02:37]} exd4 {[%emt 0:02:11]} 22. Nxd4 {[%emt 0:00:01]} Nxd4 {[%emt 0:01:46]} 23. Bxd4 {[%emt 0:00:16]} Rfd8 {[%emt 0:04:14]} 24. Nb3 {[%emt 0:03:37]} Be6 {[%emt 0:04:35]} 25. Qf3 {[%emt 0:00:15]} Bxb3 {[%emt 0:01:59]} 26. Qxb3+ {[%emt 0:00:16]} Qf7 {[%emt 0:00:40]} 27. Qb4 {[%emt 0:04:32]} Ra8 {[%emt 0:03:09]} 28. h4 {[%emt 0:01:54]} h5 {[%emt 0:03:19]} 29. Rxa8 {[%emt 0:03:29]} Rxa8 {[%emt 0:00:11]} 30. Qd6 {[%emt 0:00:10]} Ra6 {[%emt 0:13:39]} 31. Re3 {[%emt 0:04:44]} Bf8 {[%emt 0:04:19]} 32. Qb8 {[%emt 0:04:21]} Ra4 {[%emt 0:03:57]} 33. c3 {[%emt 0:02:48]} Qe7 {[%emt 0:02:53]} 34. Rg3 {[%emt 0:07:54]} Qxe4 {[%emt 0:02:25]} 35. Bxf6 {[%emt 0:03:22]} Qe1+ {[%emt 0:10:47]} 36. Kh2 {[%emt 0:00:01]} Rg4 {[%emt 0:00:25]} 37. Rf3 {[%emt 0:01:57]} Qe6 {[%emt 0:03:08]} 38. g3 {[%emt 0:00:06]} Qd5 {[%emt 0:00:49]} 39. Kg2 {[%emt 0:00:39]} Qd6 {[%emt 0:01:34]} 40. Qe8 {[%emt 0:00:00]} Qc7 {[%emt 0:00:00]} 41. Bg5 {[%emt 0:18:07]} 1-0

[Event "14th Margaryan Memorial-IM 2024"]
[Site "Yerevan"]
[Date "2024.01.09"]
[Round "2.6"]
[White "Zakaryan, David"]
[Black "Rostomyan, Mikayel"]
[Result "1-0"]
[ECO "D06"]
[WhiteElo "2299"]
[BlackElo "2294"]
[Annotator "RC"]
[PlyCount "81"]
[EventDate "2024.01.08"]
[EventType "tourn"]
[EventCountry "ARM"]
[SourceTitle "playchess.com"]
[Source "ChessBase"]
[SourceQuality "1"]
[TimeControl "40/5400+30:1800+30"]

1. Nf3 {[%emt 0:00:44]} d5 {[%emt 0:00:11]} 2. d4 {[%emt 0:00:03]} Bf5 {[%emt 0:00:27]} 3. c4 {[%emt 0:00:04]} e6 {[%emt 0:00:07]} 4. Nc3 {[%emt 0:00:03]} Nc6 {[%emt 0:00:09]} 5. Bf4 {[%emt 0:00:13]} Nf6 {[%emt 0:00:25]} 6. e3 {[%emt 0:03:04]} Ne4 {[%emt 0:02:10]} 7. Nd2 {[%emt 0:09:37]} g5 {[%emt 0:21:24]} 8. Bg3 {[%emt 0:00:06]} Nxg3 {[%emt 0:00:29]} 9. hxg3 {[%emt 0:00:05]} Nb4 {[%emt 0:01:56]} 10. Rc1 {[%emt 0:00:25]} c6 {[%emt 0:00:06]} 11. Nf3 {[%emt 0:02:06]} dxc4 {[%emt 0:09:07]} 12. Bxc4 {[%emt 0:00:10]} Nd5 {[%emt 0:01:00]} 13. Nxd5 {[%emt 0:10:49]} exd5 {[%emt 0:01:03]} 14. Bd3 {[%emt 0:00:01]} Bg4 {[%emt 0:06:40]} 15. Qb3 {[%emt 0:01:16]} Qe7 {[%emt 0:10:44]} 16. Rxh7 {[%emt 0:03:54]} Rxh7 {[%emt 0:02:20]} 17. Bxh7 {[%emt 0:00:02]} Bg7 {[%emt 0:00:56]} 18. Qd3 {[%emt 0:01:59]} Qf6 {[%emt 0:08:04]} 19. Ne5 {[%emt 0:02:24]} Be6 {[%emt 0:00:06]} 20. Ke2 {[%emt 0:05:11]} Qe7 {[%emt 0:03:49]} 21. Nf3 {[%emt 0:02:16]} g4 {[%emt 0:05:16]} 22. Nh4 {[%emt 0:02:39]} Bf6 {[%emt 0:01:36]} 23. Bf5 {[%emt 0:09:29]} Bxh4 {[%emt 0:07:13]} 24. Bxe6 {[%emt 0:00:41]} Qxe6 {[%emt 0:02:28]} 25. gxh4 {[%emt 0:00:10]} Kd7 {[%emt 0:01:11]} 26. b4 {[%emt 0:00:17]} a6 {[%emt 0:03:44]} 27. a4 {[%emt 0:00:07]} g3 {[%emt 0:00:42]} 28. f3 {[%emt 0:08:27]} f5 {[%emt 0:01:17]} 29. h5 {[%emt 0:02:30]} Re8 {[%emt 0:00:39]} 30. f4 {[%emt 0:04:41]} Qf7 {[%emt 0:02:36]} 31. Rh1 {[%emt 0:00:46]} Rh8 {[%emt 0:00:27]} 32. b5 {[%emt 0:01:22]} axb5 {[%emt 0:01:52]} 33. axb5 {[%emt 0:00:06]} Ke6 {[%emt 0:01:55]} 34. h6 {[%emt 0:03:36]} Kf6 {[%emt 0:00:20]} 35. bxc6 {[%emt 0:01:01]} bxc6 {[%emt 0:00:15]} 36. Qa6 {[%emt 0:00:31]} Qe6 {[%emt 0:00:08]} 37. Qb7 {[%emt 0:00:34]} Qe4 {[%emt 0:00:31]} 38. Qxc6+ {[%emt 0:00:26]} Kf7 {[%emt 0:00:53]} 39. Qc7+ {[%emt 0:00:07]} Kf6 {[%emt 0:00:21]} 40. Qe5+ {[%emt 0:00:00]} Kg6 {[%emt 0:00:00]} 41. Qg7# {[%emt 0:15:15]} 1-0

[Event "14th Margaryan Memorial-IM 2024"]
[Site "Yerevan"]
[Date "2024.01.09"]
[Round "2.7"]
[White "Ambartsumian, Tyhran"]
[Black "Gasparyan, Erik R."]
[Result "0-1"]
[ECO "B51"]
[WhiteElo "2224"]
[BlackElo "2340"]
[Annotator "RC"]
[PlyCount "141"]
[EventDate "2024.01.08"]
[EventType "tourn"]
[EventCountry "ARM"]
[SourceTitle "playchess.com"]
[Source "ChessBase"]
[SourceQuality "1"]
[TimeControl "40/5400+30:1800+30"]

1. e4 {[%emt 0:00:02]} c5 {[%emt 0:01:00]} 2. Nf3 {[%emt 0:00:14]} d6 {[%emt 0:00:33]} 3. Bb5+ {[%emt 0:00:06]} Nd7 {[%emt 0:01:07]} 4. Ba4 {[%emt 0:00:13]} Ngf6 {[%emt 0:00:44]} 5. O-O {[%emt 0:00:09]} a6 {[%emt 0:00:40]} 6. c4 {[%emt 0:00:07]} e6 {[%emt 0:00:44]} 7. Nc3 {[%emt 0:00:32]} Be7 {[%emt 0:00:10]} 8. d4 {[%emt 0:00:44]} cxd4 {[%emt 0:00:14]} 9. Nxd4 {[%emt 0:00:08]} O-O {[%emt 0:00:06]} 10. Qe2 {[%emt 0:02:46]} Qc7 {[%emt 0:00:13]} 11. Kh1 {[%emt 0:02:45]} Nb6 {[%emt 0:03:48]} 12. Bb3 {[%emt 0:00:16]} Bd7 {[%emt 0:00:06]} 13. f4 {[%emt 0:16:33]} Rac8 {[%emt 0:08:32]} 14. e5 {[%emt 0:00:23]} Ne8 {[%emt 0:00:01]} 15. exd6 {[%emt 0:36:32]} Nxd6 {[%emt 0:18:56]} 16. c5 {[%emt 0:15:39]} Qxc5 {[%emt 0:00:35]} 17. Be3 {[%emt 0:01:01]} Nbc4 {[%emt 0:09:50]} 18. Bg1 {[%emt 0:01:26]} Qa5 {[%emt 0:00:36]} 19. Rac1 {[%emt 0:01:09]} Rfe8 {[%emt 0:04:39]} 20. Ne4 {[%emt 0:02:04]} Nxe4 {[%emt 0:03:45]} 21. Rxc4 {[%emt 0:02:50]} Nd2 {[%emt 0:02:13]} 22. Rxc8 {[%emt 0:00:10]} Rxc8 {[%emt 0:00:31]} 23. Rd1 {[%emt 0:00:48]} Nxb3 {[%emt 0:00:05]} 24. Nxb3 {[%emt 0:00:30]} Qb5 {[%emt 0:00:14]} 25. Qd2 {[%emt 0:00:19]} Be8 {[%emt 0:01:34]} 26. h3 {[%emt 0:00:19]} h6 {[%emt 0:01:36]} 27. Nd4 {[%emt 0:00:39]} Qd5 {[%emt 0:02:04]} 28. a3 {[%emt 0:01:23]} Bf6 {[%emt 0:00:27]} 29. Be3 {[%emt 0:00:10]} Qe4 {[%emt 0:00:52]} 30. Qf2 {[%emt 0:00:13]} Rd8 {[%emt 0:01:48]} 31. Rd2 {[%emt 0:00:42]} Rd5 {[%emt 0:00:48]} 32. Nf3 {[%emt 0:01:08]} Qb1+ {[%emt 0:00:23]} 33. Kh2 {[%emt 0:00:06]} Rxd2 {[%emt 0:00:21]} 34. Nxd2 {[%emt 0:00:06]} Qc2 {[%emt 0:00:49]} 35. Bd4 {[%emt 0:00:05]} Bxd4 {[%emt 0:01:16]} 36. Qxd4 {[%emt 0:00:08]} Bc6 {[%emt 0:00:02]} 37. Qd8+ {[%emt 0:00:47]} Kh7 {[%emt 0:00:06]} 38. Qd4 {[%emt 0:00:03]} Bd5 {[%emt 0:03:02]} 39. Kg1 {[%emt 0:01:31]} Qg6 {[%emt 0:01:33]} 40. Qf2 {[%emt 0:00:00]} Qf6 {[%emt 0:00:00]} 41. Nf1 {[%emt 0:17:06]} g5 {[%emt 0:16:51]} 42. g3 {[%emt 0:01:21]} Qf5 {[%emt 0:01:33]} 43. Ne3 {[%emt 0:02:29]} Qb1+ {[%emt 0:00:10]} 44. Qf1 {[%emt 0:00:02]} Qxf1+ {[%emt 0:01:23]} 45. Kxf1 {[%emt 0:00:01]} Be4 {[%emt 0:01:20]} 46. Kf2 {[%emt 0:00:29]} Kg6 {[%emt 0:00:16]} 47. Nc4 {[%emt 0:00:22]} f6 {[%emt 0:01:50]} 48. b4 {[%emt 0:01:12]} Bd5 {[%emt 0:00:31]} 49. Nb6 {[%emt 0:01:05]} Bc6 {[%emt 0:00:05]} 50. Nc4 {[%emt 0:00:20]} gxf4 {[%emt 0:01:43]} 51. gxf4 {[%emt 0:00:02]} Kf5 {[%emt 0:00:05]} 52. Ke3 {[%emt 0:00:07]} e5 {[%emt 0:00:30]} 53. fxe5 {[%emt 0:00:36]} fxe5 {[%emt 0:00:13]} 54. Nd6+ {[%emt 0:01:08]} Ke6 {[%emt 0:00:06]} 55. Nc4 {[%emt 0:00:04]} Bd5 {[%emt 0:00:09]} 56. Nb6 {[%emt 0:00:44]} Bg2 {[%emt 0:00:15]} 57. h4 {[%emt 0:00:06]} Kf5 {[%emt 0:00:57]} 58. Nc4 {[%emt 0:00:47]} Bd5 {[%emt 0:01:18]} 59. Nb6 {[%emt 0:00:13]} Bc6 {[%emt 0:00:13]} 60. Nc4 {[%emt 0:00:28]} h5 {[%emt 0:00:36]} 61. a4 {[%emt 0:00:24]} Bxa4 {[%emt 0:08:55]} 62. Nd6+ {[%emt 0:00:12]} Kg4 {[%emt 0:00:03]} 63. Nxb7 {[%emt 0:00:38]} Kxh4 {[%emt 0:00:06]} 64. Nc5 {[%emt 0:00:42]} Bc6 {[%emt 0:00:54]} 65. Nd3 {[%emt 0:03:12]} Kg3 {[%emt 0:01:42]} 66. Nxe5 {[%emt 0:00:09]} h4 {[%emt 0:00:11]} 67. Nxc6 {[%emt 0:00:05]} h3 {[%emt 0:00:03]} 68. b5 {[%emt 0:06:08]} axb5 {[%emt 0:00:05]} 69. Nd4 {[%emt 0:00:06]} h2 {[%emt 0:00:04]} 70. Nf5+ {[%emt 0:00:13]} Kh3 {[%emt 0:00:09]} 71. Kd4 {[%emt 0:20:43]} 0-1

[Event "14th Margaryan Memorial-IM 2024"]
[Site "Yerevan"]
[Date "2024.01.09"]
[Round "2.8"]
[White "Putrenko, Kirill"]
[Black "Hayrapetyan, Edgar"]
[Result "1/2-1/2"]
[ECO "D50"]
[WhiteElo "2353"]
[BlackElo "2233"]
[Annotator "RC"]
[PlyCount "85"]
[EventDate "2024.01.08"]
[EventType "tourn"]
[EventCountry "ARM"]
[SourceTitle "playchess.com"]
[Source "ChessBase"]
[SourceQuality "1"]
[TimeControl "40/5400+30:1800+30"]

1. d4 {[%emt 0:00:03]} Nf6 {[%emt 0:00:07]} 2. c4 {[%emt 0:00:09]} e6 {[%emt 0:00:05]} 3. Nf3 {[%emt 0:00:31]} d5 {[%emt 0:00:07]} 4. Nc3 {[%emt 0:00:05]} c5 {[%emt 0:00:05]} 5. cxd5 {[%emt 0:00:56]} cxd4 {[%emt 0:00:06]} 6. Qxd4 {[%emt 0:00:18]} exd5 {[%emt 0:00:06]} 7. Bg5 {[%emt 0:00:18]} Be7 {[%emt 0:00:06]} 8. e3 {[%emt 0:00:35]} O-O {[%emt 0:01:12]} 9. Be2 {[%emt 0:03:05]} Nc6 {[%emt 0:00:48]} 10. Qd3 {[%emt 0:00:27]} h6 {[%emt 0:02:24]} 11. Bh4 {[%emt 0:01:04]} Be6 {[%emt 0:00:20]} 12. O-O {[%emt 0:00:34]} Qb6 {[%emt 0:00:35]} 13. Rfd1 {[%emt 0:07:16]} Rac8 {[%emt 0:11:07]} 14. a3 {[%emt 0:07:42]} Na5 {[%emt 0:16:42]} 15. Qb5 {[%emt 0:26:43]} Qxb5 {[%emt 0:23:57]} 16. Bxb5 {[%emt 0:07:40]} Nc4 {[%emt 0:12:32]} 17. Bxc4 {[%emt 0:00:32]} Rxc4 {[%emt 0:02:20]} 18. Bg3 {[%emt 0:03:41]} Rfc8 {[%emt 0:04:27]} 19. Ne5 {[%emt 0:02:52]} R4c5 {[%emt 0:22:54]} 20. Nd3 {[%emt 0:00:32]} R5c6 {[%emt 0:00:00]} 21. Be5 {[%emt 0:01:22]} Ne4 {[%emt 0:00:00]} 22. Nf4 {[%emt 0:02:32]} Nxc3 {[%emt 0:00:00]} 23. Bxc3 {[%emt 0:00:08]} Rd8 {[%emt 0:00:00]} 24. h3 {[%emt 0:01:23]} Bd6 {[%emt 0:00:00]} 25. Ne2 {[%emt 0:02:45]} Rdc8 {[%emt 0:00:00]} 26. Rd2 {[%emt 0:01:47]} Rc4 {[%emt 0:00:00]} 27. Rad1 {[%emt 0:01:44]} b5 {[%emt 0:00:00]} 28. Rd4 {[%emt 0:04:37]} Rxd4 {[%emt 0:00:00]} 29. Rxd4 {[%emt 0:02:31]} Rc4 {[%emt 0:00:00]} 30. Rd1 {[%emt 0:04:03]} a6 {[%emt 0:00:39]} 31. Kf1 {[%emt 0:03:48]} f6 {[%emt 0:01:06]} 32. Ke1 {[%emt 0:03:42]} Kf7 {[%emt 0:00:05]} 33. Kd2 {[%emt 0:00:46]} g5 {[%emt 0:00:24]} 34. Nd4 {[%emt 0:02:44]} h5 {[%emt 0:01:18]} 35. b3 {[%emt 0:00:56]} Rc8 {[%emt 0:00:07]} 36. Bb2 {[%emt 0:08:39]} Bd7 {[%emt 0:00:08]} 37. Rc1 {[%emt 0:00:00]} Rxc1 {[%emt 0:00:29]} 38. Kxc1 {[%emt 0:00:00]} h4 {[%emt 0:00:24]} 39. b4 {[%emt 0:00:00]} Be5 {[%emt 0:05:20]} 40. Kd2 Bxd4 41. Bxd4 Bxh3 42. gxh3 g4 43. Ke1 1/2-1/2